[Event "Late-Titled-Tuesday-Blitz-March-12-2024"]
[Site "Chess.com"]
[Date "2024.03.12"]
[Round "5"]
[White "Kildepiotr"]
[Black "Bauman_Guy"]
[Result "1/2-1/2"]
[WhiteElo "2703"]
[BlackElo "2917"]
[TimeControl "180+1"]
[EndTime "14:55:57 PDT"]
[Termination "Game drawn - insufficient material"]

1. Nf3 {[%clk 0:03:00.9]} 1... d5 {[%clk 0:02:56.9]} 2. g3 {[%clk 0:03:00.1]}
2... c6 {[%clk 0:02:54.9]} 3. Bg2 {[%clk 0:03:00.3]} 3... Bg4 {[%clk 0:02:55.3]}
4. O-O {[%clk 0:03:01.2]} 4... Nd7 {[%clk 0:02:52.1]} 5. d3 {[%clk 0:03:01.6]}
5... e5 {[%clk 0:02:51.3]} 6. Nbd2 {[%clk 0:03:01.4]} 6... Ngf6 {[%clk
0:02:51.9]} 7. e4 {[%clk 0:03:01.6]} 7... Bd6 {[%clk 0:02:52.6]} 8. h3 {[%clk
0:03:01.7]} 8... Bh5 {[%clk 0:02:52.6]} 9. Qe1 {[%clk 0:03:02.2]} 9... O-O
{[%clk 0:02:52.5]} 10. Nh4 {[%clk 0:03:02.2]} 10... Re8 {[%clk 0:02:52]} 11. Nf5
{[%clk 0:03:02]} 11... Bf8 {[%clk 0:02:52.1]} 12. Nb3 {[%clk 0:03:02.4]} 12...
a5 {[%clk 0:02:51.2]} 13. a4 {[%clk 0:03:02.1]} 13... Qc7 {[%clk 0:02:49.2]} 14.
g4 {[%clk 0:03:01.9]} 14... Bg6 {[%clk 0:02:48.8]} 15. Ng3 {[%clk 0:03:02.6]}
15... Nc5 {[%clk 0:02:42.6]} 16. Nxc5 {[%clk 0:03:01.9]} 16... Bxc5 {[%clk
0:02:43.5]} 17. Qe2 {[%clk 0:03:01.7]} 17... Rad8 {[%clk 0:02:41.6]} 18. h4
{[%clk 0:03:01.6]} 18... h6 {[%clk 0:02:37]} 19. h5 {[%clk 0:03:01.6]} 19... Bh7
{[%clk 0:02:37.1]} 20. g5 {[%clk 0:03:02.1]} 20... hxg5 {[%clk 0:02:37]} 21.
Bxg5 {[%clk 0:03:03]} 21... Be7 {[%clk 0:02:31.1]} 22. Qf3 {[%clk 0:02:53.7]}
22... dxe4 {[%clk 0:02:24]} 23. dxe4 {[%clk 0:02:53]} 23... Nd7 {[%clk
0:02:22.6]} 24. Be3 {[%clk 0:02:45.2]} 24... Nc5 {[%clk 0:02:16.9]} 25. Bh3
{[%clk 0:02:42.3]} 25... Ne6 {[%clk 0:02:13.8]} 26. Bf5 {[%clk 0:02:37.5]} 26...
Nf4 {[%clk 0:02:02.1]} 27. Bxh7+ {[%clk 0:02:35.7]} 27... Kxh7 {[%clk 0:02:03]}
28. Qg4 {[%clk 0:02:14.7]} 28... Bf6 {[%clk 0:01:59.6]} 29. Rad1 {[%clk
0:02:12.7]} 29... Qc8 {[%clk 0:01:48.6]} 30. Qxc8 {[%clk 0:02:07.6]} 30... Rxc8
{[%clk 0:01:47.2]} 31. Rd7 {[%clk 0:02:07.2]} 31... Re7 {[%clk 0:01:38.3]} 32.
Rfd1 {[%clk 0:02:07.2]} 32... b5 {[%clk 0:01:26]} 33. Rxe7 {[%clk 0:02:03]}
33... Bxe7 {[%clk 0:01:26.9]} 34. Rd7 {[%clk 0:02:03]} 34... Re8 {[%clk
0:01:26.9]} 35. Nf5 {[%clk 0:01:59.8]} 35... Bf6 {[%clk 0:01:21.6]} 36. h6
{[%clk 0:01:52.9]} 36... gxh6 {[%clk 0:01:20.4]} 37. Rxf7+ {[%clk 0:01:47.2]}
37... Kg6 {[%clk 0:01:19.4]} 38. Rc7 {[%clk 0:01:46.8]} 38... bxa4 {[%clk
0:00:58.6]} 39. Rxc6 {[%clk 0:01:45.8]} 39... Rb8 {[%clk 0:00:51.9]} 40. Rb6
{[%clk 0:01:36.8]} 40... Rxb6 {[%clk 0:00:47.4]} 41. Bxb6 {[%clk 0:01:37.7]}
41... h5 {[%clk 0:00:48]} 42. Bxa5 {[%clk 0:01:35.2]} 42... Kg5 {[%clk 0:00:47]}
43. f3 {[%clk 0:01:29.1]} 43... h4 {[%clk 0:00:38.8]} 44. Be1 {[%clk 0:01:23.4]}
44... Kh5 {[%clk 0:00:38.5]} 45. Kh2 {[%clk 0:01:20.1]} 45... Ne2 {[%clk
0:00:30.8]} 46. c4 {[%clk 0:01:14.8]} 46... Nd4 {[%clk 0:00:21.5]} 47. Kg2
{[%clk 0:01:13.7]} 47... Nxf5 {[%clk 0:00:16.8]} 48. exf5 {[%clk 0:01:12.5]}
48... Kg5 {[%clk 0:00:17.7]} 49. c5 {[%clk 0:01:09.8]} 49... Kxf5 {[%clk
0:00:17.5]} 50. c6 {[%clk 0:01:09.1]} 50... Ke6 {[%clk 0:00:17.4]} 51. Bb4
{[%clk 0:01:08.8]} 51... Bd8 {[%clk 0:00:16.2]} 52. Kh3 {[%clk 0:01:02.8]} 52...
Kd5 {[%clk 0:00:16]} 53. Be7 {[%clk 0:00:59.8]} 53... Ba5 {[%clk 0:00:12.2]} 54.
Kxh4 {[%clk 0:00:55.6]} 54... Kxc6 {[%clk 0:00:11.9]} 55. Kg4 {[%clk 0:00:55.2]}
55... Kd5 {[%clk 0:00:11.8]} 56. Kf5 {[%clk 0:00:55.2]} 56... Bb6 {[%clk
0:00:12.3]} 57. Ba3 {[%clk 0:00:26.5]} 57... Bd4 {[%clk 0:00:12.4]} 58. Kg4
{[%clk 0:00:24.8]} 58... Kc4 {[%clk 0:00:12]} 59. Kf5 {[%clk 0:00:24.9]} 59...
Kb3 {[%clk 0:00:10.8]} 60. Ke4 {[%clk 0:00:24.3]} 60... Bxb2 {[%clk 0:00:10.8]}
61. Bd6 {[%clk 0:00:22.3]} 61... Bc3 {[%clk 0:00:11.1]} 62. Kd3 {[%clk
0:00:20.4]} 62... Bb2 {[%clk 0:00:07.2]} 63. Kd2 {[%clk 0:00:16]} 63... Kc4
{[%clk 0:00:07]} 64. Kc2 {[%clk 0:00:14.4]} 64... Bd4 {[%clk 0:00:07.5]} 65. Be7
{[%clk 0:00:13.2]} 65... Bc5 {[%clk 0:00:07]} 66. Bf6 {[%clk 0:00:12.4]} 66...
Bd4 {[%clk 0:00:05.1]} 67. Be7 {[%clk 0:00:12.6]} 67... Bc5 {[%clk 0:00:05.6]}
68. Bf6 {[%clk 0:00:12.7]} 68... Kd5 {[%clk 0:00:04.9]} 69. Bg7 {[%clk
0:00:11.5]} 69... Ke6 {[%clk 0:00:04.4]} 70. Bh6 {[%clk 0:00:09.7]} 70... Bd4
{[%clk 0:00:04.4]} 71. Bc1 {[%clk 0:00:08.8]} 71... Kd5 {[%clk 0:00:04.7]} 72.
Kd3 {[%clk 0:00:09]} 72... Bc5 {[%clk 0:00:04.9]} 73. Kc3 {[%clk 0:00:09.6]}
73... Ke6 {[%clk 0:00:04]} 74. Kd3 {[%clk 0:00:09.5]} 74... Kf5 {[%clk
0:00:04.1]} 75. Kc4 {[%clk 0:00:09.5]} 75... Be7 {[%clk 0:00:04.1]} 76. Kd3
{[%clk 0:00:09.4]} 76... a3 {[%clk 0:00:04.4]} 77. Kc3 {[%clk 0:00:09.8]} 77...
Bg5 {[%clk 0:00:02.8]} 78. Bxa3 {[%clk 0:00:09.5]} 78... Kf4 {[%clk 0:00:03.2]}
79. Bc1+ {[%clk 0:00:09.8]} 79... Kxf3 {[%clk 0:00:03.8]} 80. Bxg5 {[%clk
0:00:10.1]} 80... e4 {[%clk 0:00:04.7]} 81. Kd4 {[%clk 0:00:10.7]} 81... e3
{[%clk 0:00:05.6]} 82. Bxe3 {[%clk 0:00:11.2]} 1/2-1/2

[Event "Late-Titled-Tuesday-Blitz-March-12-2024"]
[Site "Chess.com"]
[Date "2024.03.12"]
[Round "5"]
[White "N_Mullodzhanov"]
[Black "Alexei_Gubajdullin"]
[Result "1/2-1/2"]
[WhiteElo "2521"]
[BlackElo "2638"]
[TimeControl "180+1"]
[EndTime "14:55:58 PDT"]
[Termination "Game drawn - insufficient material"]

1. e4 {[%clk 0:03:00.9]} 1... g6 {[%clk 0:02:37.9]} 2. d4 {[%clk 0:03:00.7]}
2... Bg7 {[%clk 0:02:36.8]} 3. Nc3 {[%clk 0:03:00.8]} 3... d6 {[%clk 0:02:36.7]}
4. Be3 {[%clk 0:02:59.6]} 4... a6 {[%clk 0:02:36.5]} 5. Qd2 {[%clk 0:02:59.5]}
5... Nd7 {[%clk 0:02:36.5]} 6. O-O-O {[%clk 0:02:57.1]} 6... b5 {[%clk
0:02:36.4]} 7. Bd3 {[%clk 0:02:56.9]} 7... Bb7 {[%clk 0:02:34.5]} 8. Nf3 {[%clk
0:02:56.2]} 8... Ngf6 {[%clk 0:02:29.4]} 9. d5 {[%clk 0:02:44.4]} 9... Ng4
{[%clk 0:02:25.9]} 10. Bd4 {[%clk 0:02:40.9]} 10... Bh6 {[%clk 0:02:18.9]} 11.
Ng5 {[%clk 0:02:04.7]} 11... f6 {[%clk 0:02:18.5]} 12. f4 {[%clk 0:02:01.3]}
12... c5 {[%clk 0:02:01.8]} 13. dxc6 {[%clk 0:01:52.1]} 13... Bxc6 {[%clk
0:02:01.4]} 14. Ne6 {[%clk 0:01:45]} 14... Qb8 {[%clk 0:02:00.8]} 15. h3 {[%clk
0:01:41.1]} 15... Nge5 {[%clk 0:01:59.5]} 16. Be2 {[%clk 0:01:23.8]} 16... Nc5
{[%clk 0:01:44.3]} 17. Bxc5 {[%clk 0:01:16.5]} 17... dxc5 {[%clk 0:01:43.2]} 18.
g4 {[%clk 0:01:15.7]} 18... b4 {[%clk 0:01:36.6]} 19. Nd5 {[%clk 0:01:06.5]}
19... Kf7 {[%clk 0:01:29.6]} 20. Ndc7 {[%clk 0:00:51]} 20... Bxe4 {[%clk
0:01:21.9]} 21. Rhf1 {[%clk 0:00:50.9]} 21... Ra7 {[%clk 0:01:08.8]} 22. g5
{[%clk 0:00:49.3]} 22... Rxc7 {[%clk 0:01:03.5]} 23. Nxc7 {[%clk 0:00:46.1]}
23... Qxc7 {[%clk 0:00:58]} 24. gxh6 {[%clk 0:00:46.3]} 24... Nc6 {[%clk
0:00:49]} 25. Bc4+ {[%clk 0:00:46.1]} 25... Ke8 {[%clk 0:00:45.7]} 26. Rde1
{[%clk 0:00:38.2]} 26... f5 {[%clk 0:00:45.2]} 27. Bd5 {[%clk 0:00:28.3]} 27...
Nd4 {[%clk 0:00:30]} 28. Bxe4 {[%clk 0:00:26.8]} 28... fxe4 {[%clk 0:00:28.5]}
29. Rxe4 {[%clk 0:00:27.5]} 29... Rf8 {[%clk 0:00:27.6]} 30. Rfe1 {[%clk
0:00:24.8]} 30... Rf7 {[%clk 0:00:22.3]} 31. Qe3 {[%clk 0:00:22.4]} 31... Nf5
{[%clk 0:00:18]} 32. Qb3 {[%clk 0:00:19.8]} 32... Nxh6 {[%clk 0:00:16.2]} 33.
Qa4+ {[%clk 0:00:17.7]} 33... Kf8 {[%clk 0:00:16]} 34. Qxa6 {[%clk 0:00:18.2]}
34... Nf5 {[%clk 0:00:15.8]} 35. b3 {[%clk 0:00:15.7]} 35... Rf6 {[%clk
0:00:15.6]} 36. Re6 {[%clk 0:00:13.3]} 36... Qxf4+ {[%clk 0:00:15.1]} 37. Kb2
{[%clk 0:00:13.8]} 37... Qd4+ {[%clk 0:00:14.9]} 38. Kb1 {[%clk 0:00:14.4]}
38... Rxe6 {[%clk 0:00:13.4]} 39. Qc8+ {[%clk 0:00:14.4]} 39... Kg7 {[%clk
0:00:12.4]} 40. Qxe6 {[%clk 0:00:15.3]} 40... h5 {[%clk 0:00:11.7]} 41. Qe5+
{[%clk 0:00:14.7]} 41... Kf7 {[%clk 0:00:08.1]} 42. Qxd4 {[%clk 0:00:15.6]}
42... cxd4 {[%clk 0:00:08.3]} 43. Re5 {[%clk 0:00:10.3]} 43... Kf6 {[%clk
0:00:07.9]} 44. Rb5 {[%clk 0:00:10.6]} 44... g5 {[%clk 0:00:08.8]} 45. Rxb4
{[%clk 0:00:11.1]} 45... g4 {[%clk 0:00:08.9]} 46. hxg4 {[%clk 0:00:11.6]} 46...
hxg4 {[%clk 0:00:09.2]} 47. Rb8 {[%clk 0:00:12.5]} 47... g3 {[%clk 0:00:08.9]}
48. Rg8 {[%clk 0:00:12]} 48... Ng7 {[%clk 0:00:08.3]} 49. Rf8+ {[%clk
0:00:11.9]} 49... Kg5 {[%clk 0:00:08.2]} 50. Rf1 {[%clk 0:00:11.4]} 50... Ne6
{[%clk 0:00:05.3]} 51. a4 {[%clk 0:00:11.7]} 51... Nc5 {[%clk 0:00:05.1]} 52. a5
{[%clk 0:00:11.7]} 52... e5 {[%clk 0:00:04.7]} 53. b4 {[%clk 0:00:12.3]} 53...
Na4 {[%clk 0:00:03.1]} 54. b5 {[%clk 0:00:12.2]} 54... Nc3+ {[%clk 0:00:03.1]}
55. Kb2 {[%clk 0:00:12.9]} 55... Nxb5 {[%clk 0:00:04]} 56. Re1 {[%clk
0:00:12.6]} 56... Kf4 {[%clk 0:00:03.8]} 57. Kb3 {[%clk 0:00:10.4]} 57... e4
{[%clk 0:00:04]} 58. Kc4 {[%clk 0:00:10.6]} 58... Na7 {[%clk 0:00:04.5]} 59.
Kxd4 {[%clk 0:00:11]} 59... Kf3 {[%clk 0:00:04.3]} 60. Rxe4 {[%clk 0:00:08.9]}
60... Nc6+ {[%clk 0:00:04.3]} 61. Kd5 {[%clk 0:00:07.8]} 61... Nxa5 {[%clk
0:00:04.7]} 62. Re8 {[%clk 0:00:05.8]} 62... g2 {[%clk 0:00:04.6]} 63. Rf8+
{[%clk 0:00:06.7]} 63... Ke2 {[%clk 0:00:04.6]} 64. Rg8 {[%clk 0:00:07.2]} 64...
Kf2 {[%clk 0:00:05]} 65. Rf8+ {[%clk 0:00:06.4]} 65... Ke2 {[%clk 0:00:05.3]}
66. Re8+ {[%clk 0:00:06.9]} 66... Kf2 {[%clk 0:00:05.5]} 67. Rg8 {[%clk
0:00:06.7]} 67... g1=Q {[%clk 0:00:05.5]} 68. Rxg1 {[%clk 0:00:07.6]} 68... Kxg1
{[%clk 0:00:05.9]} 69. Kc5 {[%clk 0:00:07.9]} 69... Kf2 {[%clk 0:00:06]} 70. Kb5
{[%clk 0:00:06]} 70... Nb7 {[%clk 0:00:06.2]} 71. Kc6 {[%clk 0:00:06.6]} 71...
Na5+ {[%clk 0:00:06.3]} 72. Kb5 {[%clk 0:00:06.8]} 72... Nb7 {[%clk 0:00:06.4]}
73. c3 {[%clk 0:00:07.4]} 73... Ke3 {[%clk 0:00:06.2]} 74. Kc4 {[%clk
0:00:06.1]} 74... Nd6+ {[%clk 0:00:05.5]} 75. Kb4 {[%clk 0:00:06.8]} 75... Kd3
{[%clk 0:00:05.5]} 76. Kb3 {[%clk 0:00:06.9]} 76... Nc4 {[%clk 0:00:05.7]} 77.
Kb4 {[%clk 0:00:07.1]} 77... Nd2 {[%clk 0:00:04.4]} 78. Kc5 {[%clk 0:00:05]}
78... Kxc3 {[%clk 0:00:04.3]} 1/2-1/2

[Event "Late-Titled-Tuesday-Blitz-March-12-2024"]
[Site "Chess.com"]
[Date "2024.03.12"]
[Round "5"]
[White "GMBenjaminBok"]
[Black "kingofthenil"]
[Result "1-0"]
[WhiteElo "3030"]
[BlackElo "2763"]
[TimeControl "180+1"]
[EndTime "14:56:07 PDT"]
[Termination "GMBenjaminBok won by resignation"]

1. d4 {[%clk 0:03:00.9]} 1... d5 {[%clk 0:02:57.9]} 2. c4 {[%clk 0:02:58.1]}
2... e6 {[%clk 0:02:58.2]} 3. Nc3 {[%clk 0:02:58.1]} 3... a6 {[%clk 0:02:58.4]}
4. cxd5 {[%clk 0:02:56.2]} 4... exd5 {[%clk 0:02:59.3]} 5. Nf3 {[%clk
0:02:55.6]} 5... Nf6 {[%clk 0:02:58.9]} 6. Bg5 {[%clk 0:02:55]} 6... Be6 {[%clk
0:02:59.1]} 7. e3 {[%clk 0:02:55.1]} 7... Nbd7 {[%clk 0:02:58.8]} 8. h3 {[%clk
0:02:55.1]} 8... Bd6 {[%clk 0:02:59.3]} 9. Bd3 {[%clk 0:02:55.1]} 9... c6 {[%clk
0:02:59.4]} 10. Bf4 {[%clk 0:02:54.4]} 10... Qc7 {[%clk 0:02:59.8]} 11. Qc1
{[%clk 0:02:54.9]} 11... O-O {[%clk 0:02:56.8]} 12. O-O {[%clk 0:02:54.6]} 12...
Rfe8 {[%clk 0:02:57.4]} 13. a4 {[%clk 0:02:54.1]} 13... a5 {[%clk 0:02:55.4]}
14. Nb5 {[%clk 0:02:52.8]} 14... cxb5 {[%clk 0:02:48.6]} 15. Qxc7 {[%clk
0:02:53.7]} 15... Bxc7 {[%clk 0:02:48.8]} 16. Bxc7 {[%clk 0:02:54.6]} 16... Rec8
{[%clk 0:02:45.4]} 17. Rfc1 {[%clk 0:02:51.9]} 17... bxa4 {[%clk 0:02:42.9]} 18.
Bb5 {[%clk 0:02:45.2]} 18... Ne4 {[%clk 0:02:23.2]} 19. Bxa4 {[%clk 0:02:35]}
19... Ndc5 {[%clk 0:02:15.3]} 20. dxc5 {[%clk 0:01:51.7]} 20... Rxc7 {[%clk
0:02:14.1]} 21. Bd1 {[%clk 0:01:52.3]} 21... Rac8 {[%clk 0:01:21.6]} 22. Rxa5
{[%clk 0:00:46.6]} 22... b6 {[%clk 0:01:18.3]} 23. Ra6 {[%clk 0:00:46.5]} 23...
bxc5 {[%clk 0:01:10.6]} 24. Bc2 {[%clk 0:00:47]} 24... Nf6 {[%clk 0:00:23.6]}
25. b3 {[%clk 0:00:46.8]} 25... h6 {[%clk 0:00:21.3]} 26. Rca1 {[%clk
0:00:43.7]} 26... Kf8 {[%clk 0:00:20.9]} 27. g4 {[%clk 0:00:42.8]} 27... Ke7
{[%clk 0:00:20.8]} 28. Kg2 {[%clk 0:00:41.7]} 28... Nd7 {[%clk 0:00:18.2]} 29.
Kg3 {[%clk 0:00:40.2]} 29... Rb8 {[%clk 0:00:12.3]} 30. Ra7 {[%clk 0:00:28.9]}
30... Rbb7 {[%clk 0:00:12.6]} 31. Rxb7 {[%clk 0:00:26.6]} 31... Rxb7 {[%clk
0:00:13.5]} 32. Ra8 {[%clk 0:00:26.4]} 32... g5 {[%clk 0:00:07.8]} 33. Rh8
{[%clk 0:00:24.3]} 33... Ra7 {[%clk 0:00:04.7]} 34. Rxh6 {[%clk 0:00:24.1]}
34... Ra2 {[%clk 0:00:05.1]} 35. Bf5 {[%clk 0:00:21.8]} 35... Rb2 {[%clk
0:00:01.6]} 36. Bxe6 {[%clk 0:00:19.1]} 36... fxe6 {[%clk 0:00:02.5]} 37. Nxg5
{[%clk 0:00:19.8]} 37... Nf8 {[%clk 0:00:02.7]} 38. h4 {[%clk 0:00:11.2]} 38...
Rxb3 {[%clk 0:00:03.3]} 39. h5 {[%clk 0:00:07.3]} 39... c4 {[%clk 0:00:03.8]}
40. Nf3 {[%clk 0:00:07.7]} 40... c3 {[%clk 0:00:03.6]} 41. Nd4 {[%clk
0:00:08.2]} 41... Rb2 {[%clk 0:00:03.6]} 42. g5 {[%clk 0:00:02.7]} 42... c2
{[%clk 0:00:04]} 43. Nxc2 {[%clk 0:00:03.1]} 43... Rxc2 {[%clk 0:00:04.9]} 44.
Rh8 {[%clk 0:00:01.9]} 44... Rc1 {[%clk 0:00:03.7]} 45. Kg2 {[%clk 0:00:01.8]}
45... Rc4 {[%clk 0:00:03]} 46. f3 {[%clk 0:00:02.4]} 46... Rc2+ {[%clk
0:00:02.7]} 47. Kg3 {[%clk 0:00:03]} 47... Rc1 {[%clk 0:00:03.6]} 48. Kf2 {[%clk
0:00:03.5]} 48... Kf7 {[%clk 0:00:04]} 49. h6 {[%clk 0:00:02.8]} 49... Rc2+
{[%clk 0:00:03.5]} 50. Kg3 {[%clk 0:00:03.2]} 50... Rc1 {[%clk 0:00:03.4]} 51.
f4 {[%clk 0:00:03.7]} 51... Rh1 {[%clk 0:00:03.3]} 52. Kg2 {[%clk 0:00:03.9]}
52... Rh4 {[%clk 0:00:03.3]} 53. Kg3 {[%clk 0:00:04.4]} 53... Rh1 {[%clk
0:00:03.8]} 54. Kf2 {[%clk 0:00:05.1]} 54... Ng6 {[%clk 0:00:03.5]} 55. Rh7+
{[%clk 0:00:05.1]} 55... Kf8 {[%clk 0:00:04.1]} 56. Ra7 {[%clk 0:00:05.3]} 56...
Ne7 {[%clk 0:00:04.6]} 57. Ra8+ {[%clk 0:00:05.2]} 57... Kf7 {[%clk 0:00:05]}
58. Ra7 {[%clk 0:00:06.1]} 58... Ke8 {[%clk 0:00:05.3]} 59. Kg3 {[%clk
0:00:06.5]} 59... Nf5+ {[%clk 0:00:04.6]} 60. Kg2 {[%clk 0:00:07.1]} 60... Rh4
{[%clk 0:00:04.4]} 61. h7 {[%clk 0:00:07.6]} 61... Kf8 {[%clk 0:00:04]} 62. Kf2
{[%clk 0:00:07.3]} 62... Rh2+ {[%clk 0:00:04.1]} 63. Kg1 {[%clk 0:00:07.6]}
63... Rh4 {[%clk 0:00:04.6]} 64. g6 {[%clk 0:00:08.2]} 64... Ne7 {[%clk
0:00:01.9]} 65. Rxe7 {[%clk 0:00:07.1]} 65... Kxe7 {[%clk 0:00:02.8]} 66. g7
{[%clk 0:00:07.5]} 66... Rg4+ {[%clk 0:00:01.8]} 67. Kf2 {[%clk 0:00:07.1]}
67... Rxg7 {[%clk 0:00:02.5]} 68. h8=Q {[%clk 0:00:07.7]} 68... Rf7 {[%clk
0:00:03.4]} 69. Ke2 {[%clk 0:00:07.7]} 69... Kd6 {[%clk 0:00:03.4]} 70. Kd3
{[%clk 0:00:07.5]} 70... Rc7 {[%clk 0:00:03.7]} 71. Qd8+ {[%clk 0:00:07.5]}
71... Kc6 {[%clk 0:00:04]} 72. Qf6 {[%clk 0:00:07]} 72... Kd6 {[%clk 0:00:04.7]}
73. f5 {[%clk 0:00:07.3]} 73... Re7 {[%clk 0:00:05.5]} 74. Kd4 {[%clk
0:00:07.3]} 74... Kd7 {[%clk 0:00:05.2]} 75. fxe6+ {[%clk 0:00:07.6]} 75... Rxe6
{[%clk 0:00:06.1]} 76. Qf5 {[%clk 0:00:08]} 76... Kd6 {[%clk 0:00:06.5]} 77.
Qxd5+ {[%clk 0:00:08.2]} 77... Ke7 {[%clk 0:00:07.3]} 78. Qb7+ {[%clk
0:00:08.4]} 78... Kf6 {[%clk 0:00:07.6]} 79. e4 {[%clk 0:00:08.7]} 79... Rd6+
{[%clk 0:00:08.5]} 80. Ke3 {[%clk 0:00:09.1]} 80... Ke5 {[%clk 0:00:09.4]} 81.
Qb5+ {[%clk 0:00:08.7]} 81... Ke6 {[%clk 0:00:09.8]} 82. Qf5+ {[%clk 0:00:08.9]}
82... Ke7 {[%clk 0:00:10.2]} 83. Qe5+ {[%clk 0:00:09.1]} 83... Re6 {[%clk
0:00:10.7]} 84. Qc7+ {[%clk 0:00:09.4]} 84... Kf6 {[%clk 0:00:11]} 85. Kf4
{[%clk 0:00:09.8]} 85... Kg6 {[%clk 0:00:10.9]} 86. e5 {[%clk 0:00:08.8]} 86...
Re8 {[%clk 0:00:09.6]} 87. Qd7 {[%clk 0:00:08.7]} 87... Rf8+ {[%clk 0:00:09.5]}
88. Ke4 {[%clk 0:00:08.6]} 88... Rf7 {[%clk 0:00:10.4]} 89. e6 {[%clk
0:00:07.6]} 89... Rf1 {[%clk 0:00:05.5]} 90. e7 {[%clk 0:00:07.5]} 90... Re1+
{[%clk 0:00:06.4]} 91. Kf3 {[%clk 0:00:07.7]} 1-0